bitfinex/quotes_ETHUSD_20250804
["timestamp","ask_amount","ask_price","bid_price","bid_amount"]
[1754332645728,2.71102669,3688.7,3687.4,2.71190526]
[1754332645729,0.9631,3688.6,3687.8,9.22163197]
[1754332645935,0.9631,3688.6,3688.0,2.71148289]
[1754332646259,0.9631,3688.6,3687.8,9.22163197]
[1754332646260,0.9631,3688.5,3688.1,6.88041945]
[1754332646469,0.9631,3688.4,3688.3,2.71125831]
[1754332646664,0.9631,3688.4,3688.3,6.88025831]
[1754332646835,0.9631,3688.4,3688.3,4.169]
[1754332648348,0.9631,3688.4,3688.3,6.88027619]
[1754332648669,0.9631,3688.4,3688.3,4.169]
[1754332649342,0.9631,3688.4,3687.8,6.51]
[1754332649343,1.33050851,3688.4,3687.8,6.51]
[1754332649665,3.67437619,3688.3,3687.9,4.169]
[1754332649836,2.71127619,3688.3,3687.9,4.169]
[1754332650031,2.71088187,3688.9,3687.9,4.169]
[1754332650032,3.67447223,3688.2,3687.9,4.169]
[1754332650238,3.54717781,3688.1,3687.8,6.51]
[1754332650467,2.71157027,3687.9,3687.8,6.51]
[1754332650665,3.51337027,3687.9,3687.8,10.679]
[1754332650876,3.51337027,3687.9,3687.8,6.51]
[1754332651046,3.51337027,3687.9,3687.8,10.679]
[1754332651245,4.1358558,3687.9,3687.8,10.679]
[1754332651434,1.42428553,3687.9,3687.8,6.51]
[1754332651641,3.51337027,3687.9,3687.8,10.679]
[1754332651937,0.8018,3687.9,3687.8,10.679]
[1754332652391,0.8018,3687.9,3686.9,0.002]
[1754332652541,0.8018,3687.8,3687.0,4.169]
[1754332652849,2.7121586,3687.1,3687.0,4.169]
[1754332653054,3.5139586,3687.1,3687.0,4.169]
[1754332653273,0.8018,3687.1,3687.0,4.169]
[1754332654352,2.71190047,3687.5,3687.0,4.169]
[1754332654353,0.4895,3687.4,3687.0,4.169]
[1754332654548,3.02436482,3687.3,3687.0,4.169]
[1754332654768,2.71206482,3687.3,3687.0,4.169]
[1754332654965,0.8018,3687.2,3687.0,4.169]
[1754332655189,3.51390616,3687.2,3687.0,4.169]
[1754332655391,2.712035,3687.3,3687.0,4.169]
[1754332655568,0.9631,3687.1,3687.0,4.169]
[1754332655947,2.71223216,3687.0,3686.9,0.002]
[1754332656274,3.67533216,3687.0,3686.9,4.171]
[1754332656483,2.71223216,3687.0,3686.9,4.171]
[1754332656780,3.67533216,3687.0,3686.9,4.171]
[1754332656977,4.35083168,3687.0,3686.9,4.171]
[1754332657778,4.35083168,3687.0,3686.9,0.002]
[1754332657980,4.35083168,3687.0,3686.2,0.002]
[1754332657981,2.71274719,3686.3,3686.2,0.002]
[1754332658183,2.71304159,3685.9,3685.8,0.002]
[1754332658384,5.71304159,3685.9,3685.8,4.171]
[1754332658553,6.67614159,3685.9,3685.8,4.171]
[1754332660217,6.67614159,3685.9,3685.8,0.002]
[1754332661370,7.49147759,3685.9,3685.8,0.002]
[1754332661570,8.56904835,3685.9,3685.8,0.002]
[1754332661770,8.09544835,3685.9,3685.8,0.002]
[1754332661998,7.28011235,3685.9,3685.8,0.002]
[1754332662299,6.79061235,3685.9,3685.8,0.002]
[1754332662508,7.28011235,3685.9,3685.8,0.002]
[1754332662798,7.75371235,3685.9,3685.8,0.002]
[1754332665917,7.28011235,3685.9,3685.8,0.002]
[1754332666105,6.79061235,3685.9,3685.8,0.002]
[1754332666792,7.25941235,3685.9,3685.8,0.002]
[1754332666993,7.71771235,3685.9,3685.8,0.002]
[1754332670803,8.26771235,3685.9,3685.8,0.002]
[1754332671496,8.40491235,3685.9,3685.8,0.002]
[1754332672500,38.40491235,3685.9,3685.8,0.002]
[1754332672904,42.57591235,3685.9,3685.8,0.002]
[1754332674220,42.82712543,3685.9,3685.8,0.002]
[1754332674719,42.82712543,3685.9,3685.8,1e-08]
[1754332675236,3.26333604,3685.5,3685.4,0.002]
[1754332675420,10.46825274,3685.5,3685.4,0.002]
[1754332675588,11.36143604,3685.5,3685.4,0.002]
[1754332675899,57.6622352,3685.5,3685.4,0.002]
[1754332676099,57.91353397,3685.5,3685.4,0.002]
[1754332676412,58.85267717,3685.5,3685.4,0.002]
[1754332677216,28.85267717,3685.5,3685.4,0.002]
[1754332677535,58.85267717,3685.5,3685.4,1e-08]
[1754332679633,58.96141317,3685.5,3685.4,1e-08]
[1754332680306,60.59141317,3685.5,3685.4,1e-08]
[1754332680506,6.26363056,3685.1,3685.0,1e-08]
[1754332680724,40.68592933,3685.1,3685.0,1e-08]
[1754332681222,41.15472933,3685.1,3685.0,1e-08]
[1754332681517,42.78472933,3685.1,3685.0,1e-08]
[1754332681728,42.89347633,3685.1,3685.0,1e-08]
[1754332681905,43.97104709,3685.1,3685.0,1e-08]
[1754332682110,44.24264709,3685.1,3685.0,1e-08]
[1754332684035,43.97104709,3685.1,3685.0,1e-08]
[1754332684717,7.70124709,3685.1,3685.0,1e-08]
[1754332685041,11.21350009,3685.1,3685.0,0.49860001]
[1754332685345,7.04250009,3685.1,3685.0,1e-08]
[1754332686538,7.04250009,3685.1,3685.0,0.93420001]
[1754332687111,5.96492933,3685.1,3685.0,0.93420001]
[1754332687423,2.96492933,3685.1,3685.0,0.93420001]
[1754332690341,2.71363056,3685.1,3685.0,0.93420001]
[1754332690541,5.96638068,3685.1,3685.0,0.93420001]
[1754332690746,5.71363056,3685.1,3685.0,0.93420001]
[1754332690963,5.71363056,3685.1,3685.0,1e-08]
[1754332691149,6.55634837,3685.1,3685.0,1e-08]
[1754332691521,7.02514837,3685.1,3685.0,1e-08]
[1754332691714,6.55634837,3685.1,3685.0,1e-08]
[1754332691916,7.57514837,3685.1,3685.0,1e-08]
[1754332692136,37.57514837,3685.1,3685.0,1e-08]
[1754332693539,7.10634837,3685.1,3685.0,1e-08]
[1754332694719,6.55634837,3685.1,3685.0,0.93420001]
[1754332694917,5.71363056,3685.1,3685.0,0.93420001]
[1754332695236,5.84883056,3685.1,3685.0,0.93420001]
[1754332698965,5.84883056,3685.1,3685.0,1e-08]
[1754332699167,6.34273056,3685.1,3685.0,1e-08]
[1754332700565,5.84883056,3685.1,3685.0,1e-08]
[1754332700768,7.21865837,3685.1,3685.0,1e-08]
[1754332702368,7.71255837,3685.1,3685.0,1e-08]
[1754332702686,7.21865837,3685.1,3685.0,1e-08]
[1754332703048,5.71363056,3685.1,3685.0,1e-08]
[1754332703267,5.71363056,3685.1,3685.0,0.94830001]
[1754332703772,5.71363056,3685.1,3685.0,1e-08]
[1754332703971,6.20753056,3685.1,3685.0,1e-08]
[1754332705675,5.71363056,3685.1,3685.0,1e-08]
[1754332705877,6.97324838,3685.1,3685.0,1e-08]
[1754332706070,6.97324838,3685.1,3685.0,0.94830001]
[1754332706457,6.97324838,3685.1,3685.0,1e-08]
[1754332707180,6.97324838,3685.1,3685.0,0.47380001]
[1754332707385,6.97324838,3685.1,3685.0,0.94830001]
[1754332707689,5.71363056,3685.1,3685.0,0.94830001]
[1754332708390,5.71463056,3685.1,3685.0,0.94830001]
[1754332708889,5.71463056,3685.1,3685.0,1e-08]
[1754332709071,6.20853056,3685.1,3685.0,1e-08]
[1754332710796,7.23053056,3685.1,3685.0,1e-08]
[1754332710952,7.23053056,3685.1,3684.5,1e-08]
[1754332710953,3.2639988,3684.6,3684.5,1e-08]
[1754332711152,40.46692378,3684.6,3684.5,1e-08]
[1754332711359,41.3988988,3684.6,3684.5,1e-08]
[1754332711862,6.26421979,3684.3,3684.2,1e-08]
[1754332712062,10.43321979,3684.3,3684.2,1e-08]
[1754332712317,3.2645145,3683.9,3683.8,1e-08]
[1754332712584,36.29844593,3683.9,3683.8,1e-08]
[1754332712891,37.2304145,3683.9,3683.8,1e-08]
[1754332713222,44.12807636,3683.9,3683.8,1e-08]
[1754332713554,13.47426376,3683.9,3683.8,1e-08]
[1754332715193,44.44016376,3683.9,3683.8,1e-08]
[1754332717154,39.30526376,3683.9,3683.8,1e-08]
[1754332717355,6.0266019,3683.9,3683.8,0.94830001]
[1754332718104,2.71421486,3684.4,3683.8,0.94830001]
[1754332718105,2.71379455,3684.9,3683.8,0.94830001]
[1754332718250,3.72514304,3684.8,3684.3,0.1352]
[1754332718454,3.72514304,3684.8,3684.4,0.9483]
[1754332718455,2.71393848,3684.7,3684.4,0.9483]
[1754332718655,3.0,3684.7,3684.5,0.9483]
[1754332718889,4.0112287,3684.8,3684.6,0.9483]
[1754332719095,4.0112287,3684.8,3684.7,0.9483]
[1754332719096,3.72509807,3684.8,3684.7,0.9483]
[1754332720397,1.0112287,3684.8,3684.7,0.9483]
[1754332720780,1.26426031,3684.8,3684.7,0.9483]
[1754332721557,1.67567685,3684.8,3684.7,0.9483]
[1754332721766,1.26426031,3684.8,3684.7,0.9483]
[1754332723273,4.26426031,3684.8,3684.7,0.9483]
[1754332725294,3.0,3684.7,3684.5,0.4745]
[1754332725595,1.0112287,3684.8,3684.6,0.4745]
[1754332725790,1.0112287,3684.8,3684.3,4.3032]
[1754332725791,0.25310335,3684.7,3684.3,4.3032]
[1754332726025,4.0112287,3684.8,3684.5,0.1352]
[1754332726026,1.0112287,3684.8,3684.5,0.1352]
[1754332726298,1.0112287,3684.8,3684.6,0.4738]
[1754332726488,1.0112287,3684.8,3684.6,0.9483]
[1754332726892,1.0112287,3684.8,3684.7,0.9328]
[1754332727280,1.26433882,3684.8,3684.7,0.9328]
[1754332729485,1.0122287,3684.8,3684.7,0.9328]
[1754332730605,1.26535073,3684.8,3684.7,0.9328]
[1754332730804,1.0122287,3684.8,3684.7,0.9328]
[1754332731610,1.0122287,3684.8,3684.7,4.01140347]
[1754332733884,0.001,3684.8,3684.7,4.01140347]
[1754332734311,0.001,3684.8,3684.7,1.29747833]
[1754332734527,0.001,3684.8,3684.7,5.0998]
[1754332735414,0.001,3684.8,3684.7,4.167]
[1754332735583,0.001,3684.8,3684.7,4.6575]
[1754332736699,0.001,3684.8,3684.7,0.4905]
[1754332737118,0.001,3684.8,3684.7,4.6565]
[1754332737484,0.001,3684.8,3684.7,5.0988]
[1754332738082,0.001,3684.8,3684.7,0.4905]
[1754332738284,5.71489894,3684.8,3684.7,4.166]
[1754332738654,5.71489894,3684.8,3684.4,0.4905]
[1754332738655,3.0,3684.7,3683.9,0.4905]
[1754332738846,2.71397346,3684.7,3684.0,4.166]
[1754332739023,2.71397346,3684.7,3684.1,0.4905]
[1754332739219,0.001,3684.8,3684.1,3.64712872]
[1754332739424,0.001,3684.8,3684.2,0.9328]
[1754332739636,3.0,3684.6,3684.2,0.9328]
[1754332739844,3.0,3684.6,3684.3,0.9328]
[1754332740661,3.0,3684.6,3684.4,0.4905]
[1754332740842,3.0,3684.6,3684.5,4.166]
[1754332741250,3.0,3684.6,3684.5,4.3012]
[1754332741434,0.4996,3684.6,3683.8,0.49050001]
[1754332741639,3.0,3684.4,3684.3,0.1352]
[1754332742395,3.0,3684.6,3684.3,0.6257]
[1754332742655,0.001,3684.8,3684.4,5.0988]
[1754332742828,0.001,3684.8,3684.5,0.1352]
[1754332743023,0.001,3684.8,3684.5,1.068]
[1754332743228,3.0,3684.7,3684.5,0.1352]
[1754332743456,3.55678338,3684.7,3684.6,4.166]
[1754332743659,5.7139988,3684.6,3684.5,0.1352]
[1754332743835,5.71416215,3684.4,3684.3,0.1352]
[1754332744371,5.71416215,3684.4,3684.3,4.3012]
[1754332745457,5.71416215,3684.4,3684.3,0.1352]
[1754332745655,5.71422063,3684.3,3683.9,0.4905]
[1754332745859,2.71436714,3684.1,3684.0,4.3012]
[1754332746038,5.71436714,3684.1,3684.0,0.1352]
[1754332746237,2.71429872,3684.2,3684.0,4.166]
[1754332746458,3.0,3684.1,3684.0,4.6083]
[1754332746633,5.71424678,3684.3,3684.0,4.6083]
[1754332746833,3.85635255,3684.3,3684.0,4.6083]
[1754332747033,5.71429446,3684.2,3684.0,4.6083]
[1754332747231,2.71436714,3684.1,3684.0,4.166]
[1754332747437,2.7145145,3683.9,3683.8,0.13520001]
[1754332747636,5.7145145,3683.9,3683.8,1e-08]
[1754332747954,7.15357266,3683.9,3683.8,4.16600001]
[1754332748430,7.15357266,3683.9,3683.8,1e-08]
[1754332748631,7.87320296,3683.9,3683.8,1e-08]
[1754332749935,7.40710296,3683.9,3683.8,1e-08]
[1754332750872,7.61967266,3683.9,3683.8,1e-08]
[1754332753167,4.90515816,3683.9,3683.4,0.002]
[1754332753374,2.71436714,3684.1,3683.4,0.002]
[1754332753375,5.71480928,3683.5,3683.4,0.002]
[1754332753535,5.85000928,3683.5,3683.4,0.002]
[1754332753737,6.81570928,3683.5,3683.4,0.002]
[1754332755344,5.85000928,3683.5,3683.4,0.002]
[1754332756246,6.81570928,3683.5,3683.4,1e-08]
[1754332756445,8.53300679,3683.5,3683.4,1e-08]
[1754332756645,8.88281479,3683.5,3683.4,1e-08]
[1754332758777,8.38321479,3683.5,3683.4,1e-08]
[1754332759204,8.38321479,3683.5,3683.4,0.45170001]
[1754332759426,6.66591728,3683.5,3683.4,0.43710001]
[1754332759573,2.71480928,3683.5,3683.4,5.19000001]
[1754332759768,3.0,3683.5,3683.4,5.19000001]
[1754332760802,2.71480928,3683.5,3683.4,5.19000001]
[1754332761171,3.0,3683.5,3683.4,5.19000001]
[1754332761912,0.4517,3684.1,3683.4,5.19000001]
[1754332762072,3.0,3683.8,3683.5,0.8888]
[1754332762272,3.0,3683.9,3683.6,0.8888]
[1754332762589,2.71459276,3683.8,3683.7,0.8888]
[1754332762780,3.0,3684.0,3683.7,0.8888]
[1754332762781,2.71454264,3683.9,3683.7,0.8888]
[1754332763085,2.71454264,3683.9,3683.8,0.8888]
[1754332763286,0.815671,3684.3,3683.8,0.8888]
[1754332763530,2.71443349,3684.1,3683.8,0.1352]
[1754332763805,2.71443349,3684.1,3683.4,6.88085545]
[1754332763806,5.71458819,3683.8,3683.7,4.166]
[1754332764174,5.71458819,3683.8,3683.7,4.6177]
[1754332764374,5.71458819,3683.8,3683.7,5.0548]
[1754332765574,5.71458819,3683.8,3683.7,4.6177]
[1754332765770,2.71480928,3683.5,3683.4,1e-08]
[1754332765975,5.71480928,3683.5,3683.4,4.16600001]
[1754332767021,6.17930928,3683.5,3683.4,1e-08]
[1754332767185,6.64550928,3683.5,3683.4,1e-08]
[1754332767882,6.17930928,3683.5,3683.4,1e-08]
[1754332768083,6.76720848,3683.5,3683.4,1e-08]
[1754332768283,5.71480928,3683.5,3683.4,1e-08]
[1754332771479,5.71480928,3683.5,3683.4,0.88880001]
[1754332771776,5.71480928,3683.5,3683.4,0.45170001]
[1754332772109,3.0,3683.5,3683.4,0.88880001]
[1754332772299,5.71580928,3683.5,3683.4,0.88880001]
[1754332773178,3.001,3683.5,3683.4,0.88880001]
[1754332773379,5.71580928,3683.5,3683.4,0.88880001]
[1754332773819,3.001,3683.5,3683.4,1.02400001]
[1754332774109,5.71580928,3683.5,3683.4,1.02400001]
[1754332774512,3.001,3683.5,3683.4,1.02400001]
[1754332775087,5.71580928,3683.5,3683.4,1.02400001]
[1754332775292,7.02335916,3683.5,3683.4,1e-08]
[1754332775502,7.62475916,3683.5,3683.4,1e-08]
[1754332776186,7.50988716,3683.5,3683.4,1e-08]
[1754332777013,3.816828,3683.5,3683.4,0.88880001]
[1754332777176,3.001,3683.5,3683.4,0.88880001]
[1754332781502,0.001,3683.5,3683.4,3.60368299]
[1754332781695,0.001,3683.5,3683.4,5.18900001]
[1754332781891,0.001,3683.5,3683.4,5.70790001]
[1754332782290,0.001,3683.5,3683.4,8.42278299]
[1754332783320,0.001,3683.5,3683.4,5.70790001]
[1754332784501,0.001,3683.5,3683.4,8.42278299]
[1754332785119,0.001,3683.5,3683.4,5.70790001]
[1754332786431,0.001,3683.5,3683.4,5.18900001]
[1754332787443,0.001,3683.5,3683.4,4.30020001]
[1754332788214,0.001,3683.5,3683.4,4.75420001]
[1754332788799,0.001,3683.5,3683.4,4.30020001]
[1754332789112,2.71580928,3683.5,3683.4,4.30020001]
[1754332789325,0.001,3683.5,3683.4,4.75420001]
[1754332789499,0.001,3683.5,3683.4,5.21390001]
[1754332790732,2.71580928,3683.5,3683.4,4.30020001]
[1754332792024,0.001,3683.5,3683.4,4.30020001]
[1754332792339,0.001,3683.5,3683.4,5.21390001]
[1754332792501,2.71580928,3683.5,3683.4,5.21390001]
[1754332792702,2.71580928,3683.5,3683.4,4.30020001]
[1754332798926,6.35217083,3683.5,3683.4,0.13520001]
[1754332799255,6.35217083,3683.5,3683.4,1e-08]
[1754332799256,20.81008658,3683.5,3683.4,1e-08]
[1754332800157,20.34318658,3683.5,3683.4,1e-08]
[1754332800335,20.81008658,3683.5,3683.4,1e-08]
[1754332800643,11.11757083,3683.5,3683.4,1e-08]
[1754332800849,11.58447083,3683.5,3683.4,1e-08]
[1754332802937,10.65137083,3683.5,3683.4,1e-08]
[1754332803333,11.11757083,3683.5,3683.4,1e-08]
[1754332807065,10.65137083,3683.5,3683.4,1e-08]
[1754332807270,10.65237083,3683.5,3683.4,1e-08]
[1754332809170,11.58547083,3683.5,3683.4,1e-08]
[1754332809333,7.88017083,3683.5,3683.4,1e-08]
[1754332809534,11.58447083,3683.5,3683.4,1e-08]
[1754332809766,12.04417083,3683.5,3683.4,1e-08]
[1754332810133,11.58447083,3683.5,3683.4,1e-08]
[1754332810329,12.04417083,3683.5,3683.4,1e-08]
[1754332811172,2.71539902,3682.7,3682.6,0.28527101]
[1754332811338,5.71539902,3682.7,3682.6,0.28527101]
[1754332811537,5.71539902,3682.7,3682.5,0.1352]
[1754332811538,2.71547276,3682.6,3682.5,0.1352]
[1754332813366,6.21631616,3682.6,3682.5,1e-08]
[1754332813571,7.46466076,3682.6,3682.5,1e-08]
[1754332813800,10.05264944,3682.6,3682.5,1e-08]
[1754332815167,10.05264944,3682.6,3682.5,0.00200001]
[1754332816381,9.58574944,3682.6,3682.5,0.00200001]
[1754332816533,10.05264944,3682.6,3682.5,0.00200001]
[1754332816739,10.2553918,3682.6,3682.5,0.00200001]
[1754332821753,10.2553918,3682.6,3682.5,1e-08]
[1754332822595,9.7884918,3682.6,3682.5,1e-08]
[1754332822888,19.10538349,3682.2,3682.1,1e-08]
[1754332823055,23.27038349,3682.2,3682.1,1e-08]
[1754332823253,24.17968349,3682.2,3682.1,1e-08]
[1754332823487,24.99585349,3682.2,3682.1,1e-08]
[1754332824186,25.54585349,3682.2,3682.1,1e-08]
[1754332824489,26.60772627,3682.2,3680.3,2.71714897]
[1754332824657,2.71668061,3681.0,3680.1,4.164]
[1754332824859,2.71675344,3680.9,3680.1,4.164]
[1754332825057,2.71675344,3680.9,3680.1,6.8813117]
[1754332825279,2.71699864,3680.6,3680.1,4.164]
[1754332825483,13.38961575,3681.2,3680.2,1.34043851]
[1754332825672,2.71714076,3680.4,3680.2,1.34043851]
[1754332826022,2.71716979,3680.3,3680.2,1.34043851]
[1754332826318,2.71697355,3680.6,3680.2,1.34043851]
[1754332826452,2.71704518,3680.5,3680.2,1.34043851]
[1754332826659,2.71704518,3680.5,3680.3,1.31534385]
[1754332826893,2.71689217,3680.7,3680.4,0.7649]
[1754332827070,2.71704849,3680.5,3680.4,0.7649]
[1754332829227,2.71704849,3680.5,3680.2,1.34043851]
[1754332829228,4.165,3680.6,3679.7,0.7649]
[1754332829517,2.7171081,3680.4,3679.8,0.7649]
[1754332829722,3.0,3680.5,3679.9,0.34824927]
[1754332829897,2.71635411,3681.5,3679.9,1.11314927]
[1754332830098,2.71619157,3681.7,3680.6,13.38961575]
[1754332830299,1.66678908,3682.5,3680.6,13.38961575]
[1754332830300,2.7155465,3682.5,3681.8,0.1352]
[1754332830511,2.71598902,3681.9,3681.8,0.5978]
[1754332830822,5.71598902,3681.9,3681.8,0.1352]
[1754332830996,3.0,3681.7,3680.8,0.4626]
[1754332831331,5.71672688,3680.9,3680.8,0.4626]
[1754332831632,13.84421575,3681.6,3680.3,6.524]
[1754332831633,2.71693315,3680.7,3680.3,6.524]
[1754332831803,2.71690535,3680.7,3680.4,0.4626]
[1754332831997,2.71690535,3680.7,3680.3,10.9913]
[1754332831998,0.4546,3681.1,3680.3,6.524]
[1754332832337,2.71692023,3680.7,3680.3,7.2889]
[1754332832523,2.71692023,3680.7,3680.4,1.41712107]
[1754332832724,2.71697589,3680.6,3680.4,1.41712107]
[1754332833041,2.71709596,3680.4,3680.3,6.524]
[1754332833333,3.0,3681.1,3680.3,0.4626]
[1754332833535,2.71690382,3680.7,3680.3,0.7649]
[1754332834249,3.0,3681.1,3680.1,4.4673]
[1754332834414,0.81637,3681.3,3680.6,2.71690234]
[1754332834415,3.0,3681.2,3680.6,2.71690234]
[1754332834615,2.71644596,3681.3,3680.7,4.07283282]
[1754332834802,3.0,3681.2,3680.8,4.9299]
[1754332835152,3.0,3681.2,3679.4,2.71777095]
[1754332835153,0.55,3680.7,3679.0,0.4626]
[1754332835432,3.0,3680.3,3678.9,5.03717]
[1754332835630,3.0,3680.3,3679.4,0.7649]
[1754332835798,0.03396369,3680.4,3679.0,0.7649]
[1754332835995,1.271057,3680.7,3679.4,0.7649]
[1754332836228,0.4546,3680.7,3679.5,0.7649]
[1754332836468,5.7170205,3680.6,3679.8,2.71753081]
[1754332836775,3.0,3680.3,3679.9,4.9959]
[1754332837071,3.0,3680.3,3680.0,0.77134648]
[1754332837254,3.0,3680.3,3680.0,1.23394648]
[1754332837439,3.0,3680.4,3680.0,1.23394648]
[1754332837640,2.71711612,3680.4,3680.0,1.53624648]
[1754332837847,3.0,3680.6,3680.0,1.53624648]
[1754332838032,6.17141445,3680.8,3680.0,1.53624648]
[1754332838237,3.4546,3680.8,3680.0,4.25358991]
[1754332838564,3.0,3680.7,3680.0,1.53624648]
[1754332838862,3.0,3680.9,3680.1,0.59073239]
[1754332839061,2.71672688,3680.9,3680.1,1.03932465]
[1754332839461,3.1712759,3681.0,3680.2,2.71723722]
[1754332839771,0.20425713,3681.2,3680.1,14.4289404]
[1754332839960,0.20425713,3681.2,3681.0,2.71664407]
[1754332840264,0.20425713,3681.2,3681.1,6.94557928]
[1754332840436,0.20425713,3681.2,3681.1,6.94757928]
[1754332840638,4.04916146,3681.7,3681.1,7.41017928]
[1754332840837,2.7162282,3681.6,3681.1,4.231]
[1754332841038,2.71628637,3681.5,3681.1,4.231]
[1754332841235,0.4546,3681.4,3681.1,4.231]
[1754332841639,4.50376146,3681.7,3681.1,4.231]
[1754332841869,1.50376146,3681.7,3681.1,4.9959]
[1754332842046,4.21990305,3681.7,3681.1,4.9959]
[1754332842369,0.4546,3681.6,3681.1,4.231]
[1754332842572,1.04916146,3681.7,3681.1,7.64234412]
[1754332842871,1.04916146,3681.7,3681.5,2.71625729]
[1754332843073,1.04916146,3681.7,3681.6,7.08241034]
[1754332843437,1.04916146,3681.7,3681.6,4.8288]
[1754332844375,1.04916146,3681.7,3681.6,4.3662]
[1754332844577,1.04916146,3681.7,3681.6,7.08241034]
[1754332844738,1.04916146,3681.7,3681.6,4.3662]
[1754332846741,1.04916146,3681.7,3681.6,8.23437255]
[1754332846945,0.4842,3682.4,3681.6,8.53667255]
[1754332847190,0.4842,3682.4,3681.9,2.71597655]
[1754332847394,0.4842,3682.4,3682.0,4.226]
[1754332847740,0.001,3682.5,3682.0,4.6697]
[1754332848061,0.001,3682.5,3682.0,7.38560768]
[1754332848467,0.001,3682.5,3682.2,2.71570604]
[1754332848797,0.001,3682.5,3682.1,0.746]
[1754332848951,0.001,3682.5,3682.1,0.4437]
[1754332849506,0.001,3682.5,3682.1,3.15953778]
[1754332850482,0.001,3682.5,3682.1,0.4437]
[1754332850664,0.001,3682.5,3682.1,3.15953249]
[1754332850864,0.001,3682.5,3682.2,2.71576163]
[1754332851352,0.001,3682.5,3682.1,4.27677668]
[1754332851560,0.001,3682.5,3682.0,4.226]
[1754332851561,0.4842,3682.4,3682.0,4.226]
[1754332851778,6.18465064,3682.5,3682.1,4.222]
[1754332852088,0.4852,3682.5,3682.2,4.222]
[1754332852262,3.20075885,3682.5,3682.2,4.222]
[1754332852591,0.4842,3682.4,3682.2,4.222]
[1754332852794,2.71569399,3682.3,3682.2,4.222]
[1754332853014,0.9523,3682.3,3682.2,4.222]
[1754332853183,3.0,3682.2,3681.8,4.20999999]
[1754332853367,3.4842,3682.2,3681.9,4.22]
[1754332853562,0.4842,3682.2,3681.9,4.22]
[1754332854088,3.0,3682.3,3681.9,4.22]
[1754332854489,2.71570514,3682.3,3681.9,4.22]
[1754332854652,3.0,3682.1,3681.9,4.22]
[1754332855191,2.7158532,3682.1,3681.9,4.22]
[1754332855567,2.71591526,3682.0,3681.9,4.22]
[1754332855873,2.71616091,3681.7,3681.1,1.13847191]
[1754332856183,2.71616091,3681.7,3681.2,5.43557719]
[1754332856382,2.71616091,3681.7,3681.6,0.1352]
[1754332856683,3.20036091,3681.7,3681.6,4.3522]
[1754332858452,3.66846091,3681.7,3681.6,0.1352]
[1754332858654,6.66846091,3681.7,3681.6,4.3512]
[1754332858869,8.94586748,3681.7,3681.6,4.3512]
[1754332860688,5.71613656,3681.7,3681.6,4.3512]
[1754332862789,6.20033656,3681.7,3681.6,4.3512]
[1754332862989,2.71648042,3681.3,3680.9,6.525]
[1754332863190,2.716508,3681.2,3681.0,4.214]
[1754332863561,3.20065624,3681.3,3681.0,4.214]
[1754332864570,3.2007172,3681.2,3681.0,4.214]
[1754332864964,3.2007172,3681.2,3680.9,6.525]
[1754332864965,2.71657941,3681.1,3680.9,6.525]
[1754332865265,5.71657941,3681.1,3681.0,4.213]
[1754332865993,6.66887941,3681.1,3681.0,4.213]
[1754332866290,6.20077941,3681.1,3681.0,4.213]
[1754332867457,6.66887941,3681.1,3681.0,4.213]
[1754332868287,7.60741253,3681.1,3681.0,4.213]
[1754332868589,6.66887941,3681.1,3681.0,4.213]
[1754332870802,6.20077941,3681.1,3681.0,4.213]
[1754332871111,0.4842,3681.6,3681.0,4.6567]
[1754332871417,3.816137,3682.0,3681.1,0.4437]
[1754332871715,3.0,3681.5,3681.2,4.206]
[1754332871914,3.0,3681.6,3681.2,4.206]
[1754332872271,3.4842,3681.8,3681.2,4.206]
[1754332872472,3.0,3681.6,3681.2,4.206]
[1754332872924,3.0,3681.4,3681.2,4.206]
[1754332873618,5.71624009,3681.6,3681.2,4.206]
[1754332873986,3.20027947,3681.8,3681.2,6.92250211]
[1754332874174,3.0,3681.5,3681.2,4.206]
[1754332874376,3.4842,3681.6,3681.2,4.206]
[1754332874812,3.20041792,3681.6,3681.2,4.206]
[1754332875797,3.20041792,3681.6,3681.3,4.20999999]
[1754332876003,3.2005137,3681.5,3681.4,4.204]
[1754332877096,0.4842,3681.5,3681.4,4.204]
[1754332877499,3.4536,3681.7,3681.4,4.204]
[1754332877700,0.4536,3681.6,3681.4,4.204]
[1754332878076,3.16981838,3681.6,3681.4,4.204]
[1754332878588,2.71621838,3681.6,3681.4,4.204]
[1754332878786,0.4536,3681.5,3681.4,4.204]
[1754332879204,2.71621838,3681.6,3681.4,4.204]
[1754332879604,3.16981838,3681.6,3681.4,4.204]
[1754332879813,0.4536,3681.6,3681.4,4.204]
[1754332879992,3.0,3682.1,3681.4,4.204]
[1754332880322,2.71606587,3681.8,3681.4,4.204]
[1754332880637,3.0,3681.7,3681.4,4.204]
[1754332880777,2.7160095,3681.9,3681.7,0.1352]
[1754332880981,3.0,3681.9,3681.8,4.198]
[1754332881212,6.16958902,3681.9,3681.8,4.198]
[1754332881419,6.62618902,3681.9,3681.8,4.198]
[1754332882713,3.4536,3681.9,3681.8,4.198]
[1754332882916,6.16958902,3681.9,3681.8,4.198]
[1754332884618,3.0,3681.9,3681.8,4.198]
[1754332884921,3.0,3681.9,3681.8,6.91406279]
[1754332885121,0.001,3682.1,3681.8,5.69507552]
[1754332885323,0.001,3682.1,3681.9,3.16127222]
[1754332885529,0.001,3682.1,3682.0,2.71591526]
[1754332885719,0.001,3682.1,3682.0,3.16121526]
[1754332886027,0.001,3682.1,3682.0,4.54598414]
[1754332886932,0.001,3682.1,3682.0,4.24368414]
[1754332887702,0.001,3682.1,3682.0,8.45265975]
[1754332887925,0.001,3682.1,3682.0,8.74098414]
[1754332888130,0.001,3682.1,3682.0,7.99338414]
[1754332888332,0.001,3682.1,3682.0,8.74098414]
[1754332889002,0.001,3682.1,3682.0,8.43868414]
[1754332889197,0.001,3682.1,3682.0,8.74098414]